bitfinex-derivatives/quotes_BNBF0:USTF0_20250510
["timestamp","ask_amount","ask_price","bid_price","bid_amount"]
[1746896249729,0.26474448,657.92,657.05,1.23407266]
[1746896249929,0.26474448,657.92,657.06,0.88383592]
[1746896250429,0.26474448,657.92,657.07,1.23407266]
[1746896251129,0.26474448,657.92,657.08,1.23407266]
[1746896251925,0.26474448,657.92,657.09,1.23407266]
[1746896252729,0.26474448,657.92,657.1,1.23407266]
[1746896253131,0.26474448,657.92,657.11,1.23407266]
[1746896253631,0.26474448,657.92,657.12,1.23407266]
[1746896254132,0.26474448,657.92,657.13,1.23407266]
[1746896254532,0.26474448,657.92,657.14,1.23407266]
[1746896254730,0.57670337,658.68,657.14,1.23407266]
[1746896255133,0.2647324,657.87,657.15,1.23407266]
[1746896255736,0.2647324,657.87,657.16,1.23407266]
[1746896256336,0.2647324,657.87,657.17,1.23407266]
[1746896256835,0.2647324,657.87,657.18,1.23407266]
[1746896257637,0.2647324,657.87,657.19,1.23407266]
[1746896258240,0.2647324,657.87,657.2,1.23407266]
[1746896258939,0.2647324,657.87,657.21,1.23407266]
[1746896259540,0.2647324,657.87,657.22,1.23407266]
[1746896260141,0.2647324,657.87,657.23,1.23407266]
[1746896260639,0.2647324,657.87,657.24,1.23407266]
[1746896260841,0.57670337,659.25,657.24,1.23407266]
[1746896261042,0.26472635,657.85,657.24,1.23407266]
[1746896261240,0.26472635,657.85,656.35,0.30471547]
[1746896261536,0.26472635,657.85,656.36,0.88212754]
[1746896261736,0.26472635,657.85,656.42,0.30468297]
[1746896261940,0.26472635,657.85,656.43,2.10767987]
[1746896262135,0.26472635,657.85,656.45,0.30466905]
[1746896262335,0.26472635,657.85,656.46,0.88212754]
[1746896262539,0.26472635,657.85,656.47,2.41233964]
[1746896262737,0.26472635,657.85,656.48,1.18678267]
[1746896262940,0.26472635,657.85,656.49,0.88212754]
[1746896263242,0.26472635,657.85,656.5,2.10767987]
[1746896263447,0.26472635,657.85,656.51,0.88212754]
[1746896263634,0.26472635,657.85,656.52,1.1867641]
[1746896263839,0.57670337,659.55,656.53,1.18675946]
[1746896264037,0.57670337,659.55,656.54,0.88212754]
[1746896264235,0.26481298,657.78,656.55,0.88212754]
[1746896264441,0.26481298,657.78,656.56,0.88196507]
[1746896264641,0.26481298,657.78,656.57,1.18657843]
[1746896264843,0.26481298,657.78,656.58,2.41212613]
[1746896265045,0.26481298,657.78,656.59,1.18656916]
[1746896265245,0.26481298,657.78,656.6,0.88196507]
[1746896265543,0.26481298,657.78,656.58,1.22555233]
[1746896265544,1.98997944,659.46,656.61,1.18655988]
[1746896265742,0.26479081,657.85,656.62,2.1075174]
[1746896265939,0.26479081,657.85,656.63,0.88196507]
[1746896266139,0.26479081,657.85,656.64,0.88196507]
[1746896266344,0.26479081,657.85,656.65,1.18654132]
[1746896266542,0.26479081,657.85,656.66,1.18653669]
[1746896266743,0.26479081,657.85,656.67,2.41208438]
[1746896266942,0.26479081,657.85,656.68,2.41207974]
[1746896267149,0.26479081,657.85,656.69,0.88196507]
[1746896267348,0.26479081,657.85,656.7,2.1075174]
[1746896267548,0.26479081,657.85,656.71,1.1865135]
[1746896267742,0.26479081,657.85,656.72,0.88196507]
[1746896267946,0.26479081,657.85,656.73,0.88196507]
[1746896268149,0.26479081,657.85,656.74,2.1075174]
[1746896268445,0.26479081,657.85,656.75,0.88196507]
[1746896268649,0.26479081,657.85,656.76,0.88196507]
[1746896268945,0.26479081,657.85,656.77,0.88196507]
[1746896269150,0.26479081,657.85,656.78,2.1075174]
[1746896269352,0.26479081,657.85,656.79,0.88196507]
[1746896269550,0.26479081,657.85,656.8,0.88196507]
[1746896269753,1.98997944,658.74,656.81,0.88196507]
[1746896269953,1.98997944,658.74,656.82,0.88196507]
[1746896270154,0.26477872,657.81,656.83,2.1075174]
[1746896270351,0.26477872,657.81,656.84,0.88196507]
[1746896270551,0.26477872,657.81,656.85,0.88196507]
[1746896270753,0.26477872,657.81,656.86,2.1075174]
[1746896270950,0.26477872,657.81,656.87,0.88196507]
[1746896271150,0.26477872,657.81,656.88,0.88196507]
[1746896271453,0.26477872,657.81,656.89,0.88196507]
[1746896271650,0.26477872,657.81,656.9,2.1075174]
[1746896271852,0.26477872,657.81,656.91,0.88196507]
[1746896272050,0.26477872,657.81,656.92,0.88196507]
[1746896272254,0.26477872,657.81,656.93,0.88196507]
[1746896272454,0.26477872,657.81,656.94,2.1075174]
[1746896272654,0.26477872,657.81,656.95,0.88196507]
[1746896272954,1.98997944,659.88,656.96,0.88196507]
[1746896273255,0.26476361,657.81,656.97,2.1075174]
[1746896273556,0.26476361,657.81,656.98,0.88196507]
[1746896273752,0.26476361,657.81,656.99,1.22555233]
[1746896273957,0.26476361,657.81,657.0,0.88196507]
[1746896274150,0.26476361,657.81,657.01,1.22555233]
[1746896274558,0.26476361,657.81,657.02,1.22555233]
[1746896275256,0.26476361,657.81,657.03,1.22555233]
[1746896275552,0.26476361,657.81,657.04,1.22555233]
[1746896275956,0.26476361,657.81,657.05,1.22555233]
[1746896276556,0.26476361,657.81,657.06,1.22555233]
[1746896276852,0.26476361,657.81,657.07,1.22555233]
[1746896277758,0.26476361,657.81,657.08,1.22555233]
[1746896278352,0.26476361,657.81,657.09,1.22555233]
[1746896278759,0.26476361,657.81,656.72,0.30454379]
[1746896278760,1.98997944,659.11,657.1,1.22555233]
[1746896279060,0.26476966,657.71,657.1,1.22555233]
[1746896279558,0.26476966,657.71,657.11,1.22555233]
[1746896279958,0.26476966,657.71,657.12,1.22555233]
[1746896280462,0.26476966,657.71,656.72,0.30454379]
[1746896280755,0.26476966,657.71,656.73,0.88475627]
[1746896280959,0.26476966,657.71,656.74,0.88475627]
[1746896281258,0.26476966,657.71,656.75,2.11321556]
[1746896281555,0.26476966,657.71,656.76,0.88475627]
[1746896281763,0.26476966,657.71,656.77,2.11321556]
[1746896281962,0.26476966,657.71,656.78,0.88475627]
[1746896282160,0.26476966,657.71,656.79,0.88475627]
[1746896282360,0.26476966,657.71,656.8,0.88475627]
[1746896282661,0.26476966,657.71,656.81,0.88475627]
[1746896282855,0.26476966,657.71,656.82,0.88475627]
[1746896283058,0.26476966,657.71,656.83,0.88475627]
[1746896283257,0.26476966,657.71,656.84,2.11321556]
[1746896283558,0.26476966,657.71,656.85,0.88475627]
[1746896283764,0.26476966,657.71,656.86,2.11321556]
[1746896283958,0.26476966,657.71,656.87,2.11321556]
[1746896284257,0.26476966,657.71,656.88,0.88505198]
[1746896284461,0.26476966,657.71,656.89,2.11351127]
[1746896284764,0.57674798,658.67,656.9,2.11351127]
[1746896284963,0.57674798,658.67,656.91,0.88505198]
[1746896285164,0.26479383,657.69,656.92,0.88505198]
[1746896285363,0.26479383,657.69,656.93,0.88505198]
[1746896285564,0.26479383,657.69,656.94,0.88527953]
[1746896285765,0.26479383,657.69,656.95,0.88527953]
[1746896285960,0.26479383,657.69,656.96,0.88527953]
[1746896286160,0.26479383,657.69,656.97,2.11373882]
[1746896286364,0.26479383,657.69,656.97,1.22845929]
[1746896286558,0.26479383,657.69,656.72,0.30454379]
[1746896286559,0.26479383,657.69,656.98,1.22845929]
[1746896286963,0.26479383,657.69,656.99,1.22845929]
[1746896287467,0.26479383,657.69,657.0,1.22845929]
[1746896287766,0.57674798,658.36,657.0,1.22845929]
[1746896287967,0.57674798,658.36,657.01,1.22845929]
[1746896288168,0.26478275,657.69,657.01,1.22845929]
[1746896288362,0.26478275,657.69,657.02,1.22845929]
[1746896288970,0.26478275,657.69,657.03,1.22845929]
[1746896289568,0.26478275,657.69,657.04,1.22845929]
[1746896290067,0.26478275,657.69,657.05,1.22845929]
[1746896290668,0.26478275,657.69,657.06,1.22845929]
[1746896290868,0.57679457,658.19,657.06,1.22845929]
[1746896291169,0.26477671,657.69,657.06,1.22845929]
[1746896291569,0.26477671,657.69,657.07,1.22845929]
[1746896292071,0.26477671,657.69,657.08,1.22845929]
[1746896292670,0.26477671,657.69,657.09,1.22845929]
[1746896292970,0.26477671,657.69,657.1,1.22845929]
[1746896293367,0.26477671,657.69,657.11,1.22845929]
[1746896293771,0.57679457,658.72,657.11,1.22845929]
[1746896294071,0.26477167,657.69,657.12,1.22845929]
[1746896294370,0.26477167,657.69,657.13,1.22845929]
[1746896295165,0.26477167,657.69,657.14,1.22845929]
[1746896295471,0.26477167,657.69,657.15,1.22845929]
[1746896295971,0.26477167,657.69,657.16,1.22845929]
[1746896296774,0.57679457,658.87,657.17,1.22845929]
[1746896297074,0.26477671,657.64,657.18,1.22845929]
[1746896297673,0.26477671,657.64,656.72,0.30454379]
[1746896297874,0.26477671,657.64,656.73,0.88754889]
[1746896298075,0.26477671,657.64,656.74,0.88754889]
[1746896298274,0.26477671,657.64,656.75,2.11865209]
[1746896298471,0.26477671,657.64,656.76,0.88754889]
[1746896298771,0.26477671,657.64,656.77,0.88754889]
[1746896298974,0.26477671,657.64,656.78,0.88754889]
[1746896299171,0.26477671,657.64,656.79,2.11865209]
[1746896299375,0.26477671,657.64,656.8,0.88754889]
[1746896299569,0.26477671,657.64,656.81,0.88754889]
[1746896299769,0.57679457,659.04,656.82,0.88754889]
[1746896300070,0.57679457,659.04,656.83,0.88754889]
[1746896300071,0.26481197,657.64,656.83,0.88754889]
[1746896300267,0.26481197,657.64,656.84,0.88754889]
[1746896300475,0.26481197,657.64,656.85,0.88754889]
[1746896300676,0.26481197,657.64,656.86,0.88754889]
[1746896300876,0.26481197,657.64,656.87,0.88754889]
[1746896301075,0.26481197,657.64,656.88,0.88754889]
[1746896301271,0.26481197,657.64,656.89,2.11865209]
[1746896301475,0.26481197,657.64,656.89,1.2311032]
[1746896301778,0.26481197,657.64,656.9,1.2311032]
[1746896302477,0.26481197,657.64,656.91,1.2311032]
[1746896302877,0.57679457,659.02,656.91,1.2311032]
[1746896303177,0.57679457,659.02,656.92,1.2311032]
[1746896303378,0.26483212,657.49,656.92,1.2311032]
[1746896303578,0.26483212,657.49,656.93,1.2311032]
[1746896303979,0.26483212,657.49,656.14,0.30481299]
[1746896304179,0.26483212,657.49,656.26,0.30475726]
[1746896304373,0.26483212,657.49,656.27,2.12196284]
[1746896304578,0.26483212,657.49,656.28,1.19383527]
[1746896304780,0.26483212,657.49,656.29,0.8890873]
[1746896305081,0.26483212,657.49,656.3,2.42670152]
[1746896305280,0.26483212,657.49,656.31,1.19382134]
[1746896305482,0.26483212,657.49,656.32,1.1938167]
[1746896305674,0.26483212,657.49,656.33,1.19381205]
[1746896305879,0.57702258,658.98,656.34,0.8890873]
[1746896306078,0.26489159,657.49,656.35,0.8890873]
[1746896306275,0.26489159,657.49,656.36,1.19379812]
[1746896306477,0.26489159,657.49,656.33,1.23287554]
[1746896306478,0.26489159,657.49,656.37,2.42666902]
[1746896306680,0.26489159,657.49,656.38,0.8890873]
[1746896306881,0.2797568,657.25,656.39,1.1937842]
[1746896307181,0.2797568,657.25,656.4,0.8890873]
[1746896307483,0.2797568,657.25,656.41,0.8890873]
[1746896307683,0.2797568,657.25,656.42,0.8890873]
[1746896307882,0.2797568,657.25,656.43,2.12196284]
[1746896308082,0.2797568,657.25,656.44,0.8890873]
[1746896308282,0.2797568,657.25,656.45,2.12196284]
[1746896308482,0.2797568,657.25,656.46,0.8890873]
[1746896308683,0.2797568,657.25,656.47,0.8890873]
[1746896308876,0.2797568,657.25,656.48,2.12196284]
[1746896309078,0.2797568,657.25,656.49,2.12196284]
[1746896309278,0.2797568,657.25,656.5,0.8890873]
[1746896309580,0.26487647,657.49,656.51,2.12196284]
[1746896309783,0.26487647,657.49,656.52,0.8890873]
[1746896309980,0.27975811,657.25,656.53,0.8890873]
[1746896310182,0.27975811,657.25,656.54,2.12196284]
[1746896310383,0.27975811,657.25,656.55,0.8890873]
[1746896310581,0.27975811,657.25,656.56,0.8890873]
[1746896310782,0.27975811,657.25,656.57,0.8890873]
[1746896310983,0.27975811,657.25,656.58,0.8890873]
[1746896311184,0.27975811,657.25,656.59,0.8890873]
[1746896311484,0.27975811,657.25,656.6,2.12007817]
[1746896311686,0.27975811,657.25,656.61,0.88720263]
[1746896311984,0.27975811,657.25,656.62,2.12007817]
[1746896312184,0.27975811,657.25,656.63,0.88720263]
[1746896312484,0.27975811,657.25,656.64,0.88720263]
[1746896312679,0.27975811,657.25,656.65,0.88720263]
[1746896312887,0.27975811,657.25,656.66,2.12007817]
[1746896313081,0.27975811,657.25,656.67,0.88720263]
[1746896313284,0.27975811,657.25,656.66,1.23287554]
[1746896313483,0.27975811,657.25,656.68,1.23287554]
[1746896313985,0.27975811,657.25,656.69,1.23287554]
[1746896314381,0.27975811,657.25,656.7,1.23287554]
[1746896315287,0.27975811,657.25,656.71,1.23287554]
[1746896315687,0.27975811,657.25,656.72,1.23287554]
[1746896316189,0.27975811,657.25,656.73,1.23287554]
[1746896316788,0.27975811,657.25,656.74,1.23287554]
[1746896316988,0.27975811,657.25,656.39,0.3046969]
[1746896317189,0.27975811,657.25,656.4,0.88684967]
[1746896317384,0.27975811,657.25,656.41,2.11727053]
[1746896317589,0.27975811,657.25,656.42,0.88684967]
[1746896317786,0.27975811,657.25,656.43,2.11727053]
[1746896318087,0.27975811,657.25,656.44,0.88684967]
[1746896318283,0.27975811,657.25,656.45,2.11727053]
[1746896318486,0.27975811,657.25,656.46,2.11727053]
[1746896318687,0.27975811,657.25,656.46,1.23042086]
[1746896318887,0.27975811,657.25,656.47,0.88658369]
[1746896319087,0.27975811,657.25,656.48,0.88658369]
[1746896319389,0.27975811,657.25,656.49,2.11700455]
[1746896319593,0.27975811,657.25,656.5,2.11700455]
[1746896319789,0.27975811,657.25,656.51,0.88658369]
[1746896319990,0.27975811,657.25,656.52,0.88658369]
[1746896320190,0.27975811,657.25,656.53,2.11700455]
[1746896320390,0.27975811,657.25,656.54,0.88658369]
[1746896320590,0.27975811,657.25,656.55,0.88658369]
[1746896320890,0.27975811,657.25,656.56,2.11700455]
[1746896321091,0.27975811,657.25,656.57,0.88658369]
[1746896321290,0.27975811,657.25,656.58,1.23042086]
[1746896321890,0.27975811,657.25,656.59,1.23042086]
[1746896322691,0.27975811,657.25,656.6,1.23042086]
[1746896323088,0.27975811,657.25,656.61,1.23042086]
[1746896323695,0.27975811,657.25,656.62,1.23042086]
[1746896324092,0.27975811,657.25,656.63,1.23042086]
[1746896324695,0.27975811,657.25,656.64,1.23042086]
[1746896325091,0.27975811,657.25,656.65,1.23042086]
[1746896325795,0.27975811,657.25,656.66,1.23042086]
[1746896326295,0.2648936,657.33,656.67,1.23042086]
[1746896326697,0.27980754,657.25,656.67,1.23042086]
[1746896326997,0.27980754,657.25,656.68,1.23042086]
[1746896327292,0.27980754,657.25,656.69,1.23042086]
[1746896327599,0.26488856,657.33,656.69,1.23042086]
[1746896327801,1.98997944,658.26,656.7,2.11492278]
[1746896328099,0.2648422,657.55,656.71,0.88450192]
[1746896328296,0.2648422,657.55,656.72,0.88450192]
[1746896328494,0.2648422,657.55,656.73,2.11492278]
[1746896328694,0.2648422,657.55,656.74,0.88450192]
[1746896329000,0.2648422,657.55,656.75,1.23042086]
[1746896329298,0.2648422,657.55,656.76,0.88450192]
[1746896329599,0.2648422,657.55,656.77,2.11492278]
[1746896329802,0.2648422,657.55,656.78,0.88450192]
[1746896330101,0.2648422,657.55,656.79,2.11492278]
[1746896330303,0.2648422,657.55,656.8,0.88450192]
[1746896330503,0.2648422,657.55,656.81,0.88450192]
[1746896330703,0.2648422,657.55,656.79,1.23042086]
[1746896330902,0.2648422,657.55,656.8,0.88454591]
[1746896331202,0.57691834,659.29,656.81,2.11496677]
[1746896331406,0.26481398,657.64,656.81,1.23042086]
[1746896331599,0.26481398,657.64,656.82,2.11532528]
[1746896331801,0.26481398,657.64,656.83,0.88490442]
[1746896332101,0.26481398,657.64,656.84,2.11532528]
[1746896332302,0.26481398,657.64,656.84,1.23042086]
[1746896332503,0.26481398,657.64,656.85,2.11529173]
[1746896332803,0.57691834,659.17,656.85,1.23042086]
[1746896333204,0.26480794,657.64,656.85,1.23042086]
[1746896333403,0.26480794,657.64,656.86,1.23042086]
[1746896333798,0.26480794,657.64,656.87,1.23042086]
[1746896334206,0.26480794,657.64,656.88,1.23042086]
[1746896334603,0.26480794,657.64,656.89,1.23042086]
[1746896334798,0.26480794,657.64,656.9,1.23042086]
[1746896335398,0.26480794,657.64,656.91,1.23042086]
[1746896335906,0.57688461,658.78,656.91,1.23042086]
[1746896336104,0.26480189,657.64,656.91,1.23042086]
[1746896336399,0.26480189,657.64,656.92,1.23042086]
[1746896336704,0.26480189,657.64,656.93,1.23042086]
[1746896337204,0.26480189,657.64,656.94,1.23042086]
[1746896337399,0.26480189,657.64,656.95,1.23042086]
[1746896338005,0.26480189,657.64,656.96,1.23042086]
[1746896338204,0.26480189,657.64,656.97,1.23042086]
[1746896339006,1.98997944,658.71,656.98,1.23042086]
[1746896339207,0.26479585,657.64,656.98,1.23042086]
[1746896339403,0.26479585,657.64,656.99,1.23042086]
[1746896339809,0.26479585,657.64,656.39,0.3046969]
[1746896340107,0.26479585,657.64,656.4,2.11140814]
[1746896340300,0.26479585,657.64,656.41,0.88538409]
[1746896340509,0.26479585,657.64,656.42,0.88538409]
[1746896340700,0.26479585,657.64,656.43,1.19006242]
[1746896340907,0.26479585,657.64,656.44,1.19005778]
[1746896341106,0.26479585,657.64,656.45,1.19005314]
[1746896341302,0.26479585,657.64,656.46,2.41607255]
[1746896341504,0.26479585,657.64,656.47,1.19004386]
[1746896341803,0.57688461,658.67,656.48,1.19005229]
[1746896342102,0.57688461,658.66,656.49,2.11142121]
[1746896342407,0.26486034,657.57,656.5,2.11142121]
[1746896342606,0.26486034,657.57,656.51,2.11142121]
[1746896342805,0.26486034,657.57,656.52,0.88539716]
[1746896343003,0.26486034,657.57,656.53,0.88539716]
[1746896343207,0.26486034,657.57,656.54,2.11142121]
[1746896343400,0.26486034,657.57,656.55,0.88539716]
[1746896343606,0.26486034,657.57,656.56,2.11190735]
[1746896343801,0.26486034,657.57,656.57,0.8858833]
[1746896344005,0.26486034,657.57,656.58,0.8858833]
[1746896344200,0.26486034,657.57,656.59,2.11190735]
[1746896344403,0.26486034,657.57,656.6,0.8858833]
[1746896344605,0.26486034,657.57,656.61,2.11190735]
[1746896344809,0.57688461,658.24,656.62,0.8858833]
[1746896345009,0.57688461,658.24,656.63,0.8858833]
[1746896345205,0.26485026,657.55,656.64,0.8858833]
[1746896345405,0.26485026,657.55,656.65,0.8858833]
[1746896345610,0.26485026,657.55,656.66,0.8858833]
[1746896345809,0.26485026,657.55,656.67,2.11190735]
[1746896346010,0.26485026,657.55,656.68,2.11190735]
[1746896346211,0.26485026,657.55,656.69,0.8858833]
[1746896346411,0.26485026,657.55,656.7,0.8858833]
[1746896346612,0.26485026,657.55,656.71,0.8858833]
[1746896346814,0.26485026,657.55,656.72,0.8858833]
[1746896347012,0.26485026,657.55,656.73,0.8858833]
[1746896347313,0.26485026,657.55,656.74,2.11190735]
[1746896347513,0.26485026,657.55,656.75,0.8858833]
[1746896347708,0.26485026,657.55,656.76,1.22602405]
[1746896348307,0.26485026,657.55,656.77,1.22602405]
[1746896348507,0.2797648,657.25,656.77,1.22602405]
[1746896348712,0.2797648,657.25,656.78,1.22602405]
[1746896349216,0.2797648,657.25,656.79,1.22602405]
[1746896349817,0.2797648,657.25,656.48,0.30465513]
[1746896350016,0.2797648,657.25,656.49,0.88682017]
[1746896350317,0.2797648,657.25,656.5,0.88682017]
[1746896350513,0.2797648,657.25,656.51,0.88682017]
[1746896350711,0.2797648,657.25,656.52,0.88682017]
[1746896351017,0.2797648,657.25,656.53,2.11591898]
[1746896351216,0.2797648,657.25,656.54,0.88682017]
[1746896351415,0.2797648,657.25,656.53,1.22909881]
[1746896351617,0.2797648,657.25,656.54,1.22909881]
[1746896352011,0.2797648,657.25,656.55,1.22909881]
[1746896352518,0.2797648,657.25,656.56,1.22909881]
[1746896352817,0.2797648,657.25,656.57,1.22909881]
[1746896353218,0.2797648,657.25,656.58,1.22909881]
[1746896353718,0.2797648,657.25,656.59,1.22909881]
[1746896354523,0.2797648,657.25,656.6,1.22909881]
[1746896355020,0.2797648,657.25,656.48,0.30465513]
[1746896355021,0.2797648,657.25,656.61,1.22909881]
[1746896355217,0.2797648,657.25,656.62,1.22909881]
[1746896355722,0.26490671,657.28,656.62,1.22909881]
[1746896356018,0.26490671,657.28,656.63,1.22909881]
[1746896356222,0.27984051,657.25,656.63,1.22909881]
[1746896356617,0.27984051,657.25,656.64,1.22909881]
[1746896357117,0.27984051,657.25,656.48,0.30465513]
[1746896357321,0.27984051,657.25,656.49,0.88580289]
[1746896357622,0.27984051,657.25,656.5,2.11843039]
[1746896357821,0.27984051,657.25,656.51,0.88585549]
[1746896358016,0.27984051,657.25,656.52,0.88580841]
[1746896358217,0.27984051,657.25,656.5,1.2326275]
[1746896358419,0.27984051,657.25,656.51,2.11841183]
[1746896358623,0.27984051,657.25,656.52,0.88578433]
[1746896358821,0.27984051,657.25,656.53,1.2326275]
[1746896359121,0.27984051,657.25,656.54,0.88578433]
[1746896359425,0.27984051,657.25,656.55,1.2326275]
[1746896360423,0.27984051,657.25,656.56,1.2326275]
[1746896360824,0.27984051,657.25,656.57,1.2326275]
[1746896361621,0.27984051,657.25,656.58,1.2326275]
[1746896361926,0.27984051,657.25,656.59,1.2326275]
[1746896362428,0.27984051,657.25,656.6,1.2326275]
[1746896362828,0.27984051,657.25,656.61,1.2326275]
[1746896363329,0.27984051,657.25,656.62,1.2326275]
[1746896363629,0.26490066,657.3,656.62,1.2326275]
[1746896363929,0.26490066,657.3,656.63,1.2326275]
[1746896364530,0.27982639,657.25,656.64,1.2326275]
[1746896364931,0.26490066,657.3,656.64,1.2326275]
[1746896365230,0.26490066,657.3,656.48,0.30465513]
[1746896365231,0.26490066,657.3,656.65,1.2326275]
[1746896365630,0.26490066,657.3,656.66,1.2326275]
[1746896365830,0.27982527,657.25,656.66,1.2326275]
[1746896366131,0.26490066,657.3,656.66,1.2326275]
[1746896366432,0.26490066,657.3,656.67,1.2326275]
[1746896367132,0.26490066,657.3,656.68,1.2326275]
[1746896367538,0.26490066,657.3,656.69,1.2326275]
[1746896367832,0.26490066,657.3,656.7,1.2326275]
[1746896368226,0.26490066,657.3,656.48,0.30465513]
[1746896368428,0.26490066,657.3,656.49,0.86372524]
[1746896368734,0.26490066,657.3,656.5,2.09689786]
[1746896368934,0.57716466,658.72,656.51,0.86372524]
[1746896369133,0.26489965,657.36,656.52,0.86372524]
[1746896369428,0.26489965,657.36,656.53,2.09689786]
[1746896369628,0.26489965,657.36,656.54,0.86372524]
[1746896369832,0.26489965,657.36,656.55,0.86372524]
[1746896370030,0.26489965,657.36,656.56,0.863571]
[1746896370226,0.26489965,657.36,656.55,1.23317262]
[1746896370431,0.26489965,657.36,656.56,0.86362132]
[1746896370630,0.26489965,657.36,656.56,1.23317262]
[1746896371434,0.26489965,657.36,656.57,1.23317262]
[1746896371734,0.26489965,657.36,656.58,1.23317262]
[1746896372137,0.26489965,657.36,656.59,1.23317262]
[1746896372434,0.26489965,657.36,656.6,1.23317262]
[1746896372933,0.26489965,657.36,656.48,0.30465513]
[1746896372934,0.26489965,657.36,656.61,1.23317262]
[1746896373134,0.27981041,657.25,656.61,1.23317262]
[1746896373835,0.27981041,657.25,656.62,1.23317262]
[1746896374437,0.27981041,657.25,656.63,1.23317262]
[1746896375238,0.27981041,657.25,656.64,1.23317262]
[1746896375737,0.27981041,657.25,656.65,1.23317262]
[1746896376033,0.27981041,657.25,656.66,1.23317262]
[1746896377039,0.27981041,657.25,656.67,1.23317262]
[1746896377439,0.27981041,657.25,656.48,0.30465513]
[1746896377440,0.27981041,657.25,656.68,1.23317262]
[1746896378338,0.27981041,657.25,656.69,1.23317262]
[1746896378839,0.27981041,657.25,656.7,1.23317262]
[1746896379438,0.27981041,657.25,656.71,1.23317262]
[1746896380134,0.27981041,657.25,656.48,0.30465513]
[1746896380435,0.27981041,657.25,656.49,2.09561262]
[1746896380640,0.27981041,657.25,656.5,0.86396589]
[1746896380833,0.27981041,657.25,656.51,1.23164673]
[1746896381542,0.27981041,657.25,656.52,1.23164673]
[1746896382033,0.27981041,657.25,656.53,1.23164673]
[1746896382740,0.27981041,657.25,656.54,1.23164673]
[1746896383241,0.27981041,657.25,656.55,1.23164673]
[1746896383539,0.27981041,657.25,656.56,1.23164673]
[1746896384042,0.27981041,657.25,656.57,1.23164673]
[1746896384738,0.27981041,657.25,656.58,1.23164673]
[1746896385044,0.27981041,657.25,656.59,1.23164673]
[1746896385543,0.87350093,657.26,656.59,1.23164673]
[1746896385946,0.87350093,657.26,656.6,1.23164673]
[1746896386143,0.27984325,657.25,656.6,1.23164673]
[1746896386343,0.27984325,657.25,656.61,1.23164673]
[1746896386941,0.27984325,657.25,656.48,0.30465513]
[1746896387443,0.27984325,657.25,656.49,1.23061497]
[1746896387744,0.27984325,657.25,656.5,1.23061497]
[1746896388140,0.27984325,657.25,656.51,1.23061497]
[1746896388840,0.27984325,657.25,656.52,1.23061497]
[1746896389445,0.27984325,657.25,656.53,1.23061497]
[1746896389640,0.27984325,657.25,656.54,1.23061497]
[1746896390039,0.27984325,657.25,656.55,1.23061497]
[1746896390544,0.27984325,657.25,656.56,1.23061497]
[1746896390841,0.27984325,657.25,656.57,1.23061497]
[1746896391747,0.27984325,657.25,656.58,1.23061497]
[1746896392145,0.27984325,657.25,656.59,1.23061497]
[1746896392746,0.27984325,657.25,656.6,1.23061497]
[1746896393347,0.27984325,657.25,656.48,0.30465513]
[1746896393348,0.27984325,657.25,656.61,1.23061497]
[1746896393747,0.27984325,657.25,656.62,1.23061497]
[1746896394348,0.27984325,657.25,656.48,0.30465513]
[1746896394543,0.27984325,657.25,656.49,0.8639254]
[1746896394745,0.27984325,657.25,656.48,0.30465513]
[1746896394947,0.27984325,657.25,656.5,1.2305751]
[1746896395147,0.8734969,657.26,656.5,1.2305751]
[1746896395449,0.2798458,657.25,656.51,1.2305751]
[1746896395748,0.2798458,657.25,656.52,1.2305751]
[1746896396547,0.2798458,657.25,656.53,1.2305751]
[1746896396948,0.2798458,657.25,656.54,1.2305751]
[1746896397645,0.2798458,657.25,656.55,1.2305751]
[1746896398049,0.2798458,657.25,656.56,1.2305751]
[1746896398450,0.2798458,657.25,656.57,1.2305751]
[1746896398848,0.2798458,657.25,656.58,1.2305751]
[1746896399751,0.2798458,657.25,656.59,1.2305751]
[1746896400247,0.2798458,657.25,656.6,1.2305751]
[1746896400851,0.87349992,657.26,656.61,1.2305751]
[1746896401155,0.27984935,657.25,656.61,1.2305751]
[1746896401455,0.27984935,657.25,656.62,1.2305751]
[1746896402253,0.27984935,657.25,656.14,0.30481299]
[1746896402448,0.27984935,657.25,656.15,0.86588652]
[1746896402652,0.27984935,657.25,656.16,2.10030308]
[1746896402851,0.27984935,657.25,656.17,0.86598913]
[1746896403052,0.27984935,657.25,656.18,0.86598913]
[1746896403353,0.27984935,657.25,656.19,0.86598913]
[1746896403655,0.27984935,657.25,656.2,2.10040569]
[1746896403855,0.27984935,657.25,656.21,0.86598913]
[1746896404048,0.27984935,657.25,656.22,0.86598913]
[1746896404247,0.27984935,657.25,656.23,0.86598913]
[1746896404451,0.27984935,657.25,656.24,0.86598913]
[1746896404650,0.27984935,657.25,656.22,1.23441656]
[1746896404855,0.27984935,657.25,656.23,0.86752083]
[1746896405055,0.27984935,657.25,656.24,2.10193739]
[1746896405252,0.27984935,657.25,656.25,0.86752083]
[1746896405253,0.26498841,657.24,656.25,0.86752083]
[1746896405447,0.26498841,657.24,656.26,2.10193739]
[1746896405647,0.26498841,657.24,656.27,0.86752083]
[1746896405852,0.27991691,657.23,656.28,2.10193739]
[1746896406051,0.27991691,657.23,656.29,0.86752083]
[1746896406259,0.27991691,657.23,656.3,0.86754734]